bitfinex/quotes_SOLUSD_20250612
["timestamp","ask_amount","ask_price","bid_price","bid_amount"]
[1749731639566,15.74391612,158.8,158.78,23.25925689]
[1749731640064,39.00317301,158.8,158.76,23.25925689]
[1749731640357,65.00317301,158.8,158.76,23.25925689]
[1749731640561,41.74391612,158.8,158.77,23.25925689]
[1749731641372,41.74391612,158.8,158.79,23.25925689]
[1749731641663,32.29722921,158.8,158.79,23.25925689]
[1749731642246,32.29722921,158.8,158.73,1.6127]
[1749731642247,48.04030225,158.8,158.73,1.6127]
[1749731642451,23.54358003,158.79,158.69,1.6514]
[1749731642654,23.25925689,158.78,158.74,23.25925689]
[1749731642965,42.19322889,158.79,158.74,23.25925689]
[1749731643154,23.25925689,158.78,158.73,23.25925689]
[1749731643771,6.29841909,158.77,158.73,23.25925689]
[1749731643950,6.29841909,158.77,158.74,23.25925689]
[1749731644445,57.48614609,158.8,158.76,23.25925689]
[1749731644446,6.29722921,158.8,158.76,23.25925689]
[1749731644646,6.29643621,158.82,158.79,23.25925689]
[1749731644839,7.12,158.85,158.7,49.25925689]
[1749731644840,6.29564341,158.84,158.81,23.25925689]
[1749731645039,6.2953912,158.85,158.83,23.25925689]
[1749731645246,8.2397,158.9,158.84,23.25925689]
[1749731645473,8.2397,158.9,158.8,23.25925689]
[1749731645474,32.29366228,158.89,158.88,23.25925689]
[1749731645665,32.29366228,158.89,158.87,23.25925689]
[1749731646173,6.29366228,158.89,158.87,23.25925689]
[1749731647467,48.02781798,158.89,158.8,23.25925689]
[1749731647771,48.02781798,158.89,158.87,23.25925689]
[1749731648079,48.02781798,158.89,158.88,23.25925689]
[1749731648080,32.29366228,158.89,158.88,23.25925689]
[1749731648260,32.29366228,158.89,158.81,6.2239]
[1749731648665,32.29366228,158.89,158.88,23.25925689]
[1749731649053,6.29366228,158.89,158.88,23.25925689]
[1749731649368,6.2924742,158.92,158.88,23.25925689]
[1749731649573,6.2924742,158.92,158.91,23.25925689]
[1749731652069,8.77994132,158.93,158.91,23.25925689]
[1749731652274,8.77994132,158.93,158.84,1.5935]
[1749731652471,8.77994132,158.93,158.91,23.25925689]
[1749731652680,8.77994132,158.93,158.9,23.25925689]
[1749731652981,24.510137,158.93,158.9,23.25925689]
[1749731653265,8.77994132,158.93,158.92,23.25925689]
[1749731653474,8.77994132,158.93,158.91,23.25925689]
[1749731653848,47.76939389,158.93,158.84,1.5935]
[1749731654054,47.76939389,158.93,158.87,23.25925689]
[1749731654055,26.0,158.91,158.87,23.25925689]
[1749731655162,49.25925689,158.91,158.84,1.5935]
[1749731655358,26.0,158.9,158.86,23.25925689]
[1749731655677,26.0,158.9,158.88,23.25925689]
[1749731655878,6.29366228,158.89,158.88,23.25925689]
[1749731657164,6.29366228,158.89,158.87,23.25925689]
[1749731657781,6.29366228,158.89,158.88,23.25925689]
[1749731659380,6.2924742,158.92,158.84,1.5935]
[1749731659554,26.0,158.91,158.89,23.25925689]
[1749731660355,6.2924742,158.92,158.9,23.25925689]
[1749731660581,6.2924742,158.92,158.91,23.25925689]
[1749731660788,2.48773009,158.93,158.91,23.25925689]
[1749731661081,2.48773009,158.93,158.92,23.25925689]
[1749731661082,8.77984242,158.93,158.92,23.25925689]
[1749731661461,8.77984242,158.93,158.84,1.5935]
[1749731661665,8.77984242,158.93,158.92,23.25925689]
[1749731661867,2.48773009,158.93,158.92,23.25925689]
[1749731662071,8.77980974,158.93,158.92,23.25925689]
[1749731663377,2.48773009,158.93,158.92,23.25925689]
[1749731665684,2.48773009,158.93,158.89,6.5763]
[1749731665889,8.77980836,158.93,158.92,23.25925689]
[1749731666088,8.77980836,158.93,158.91,23.25925689]
[1749731666282,8.77980836,158.93,158.92,23.25925689]
[1749731666487,8.77980836,158.93,158.91,23.25925689]
[1749731667262,8.77980836,158.93,158.85,6.3756]
[1749731667487,47.76926093,158.93,158.88,23.25925689]
[1749731667690,47.76926093,158.93,158.82,26.0]
[1749731667691,24.51000404,158.93,158.82,32.4347]
[1749731667896,24.51000404,158.93,158.9,23.25925689]
[1749731668069,24.51000404,158.93,158.91,23.25925689]
[1749731670191,8.77980836,158.93,158.92,23.25925689]
[1749731670994,8.77980836,158.93,158.91,23.25925689]
[1749731671486,8.77980836,158.93,158.92,23.25925689]
[1749731672897,2.48773009,158.93,158.92,23.25925689]
[1749731673095,8.77980836,158.93,158.92,23.25925689]
[1749731673306,2.48773009,158.93,158.92,23.25925689]
[1749731676988,2.48773009,158.93,158.92,23.25925689]
[1749731679195,2.48773009,158.93,158.87,27.42]
[1749731679196,2.48773009,158.93,158.88,6.3183]
[1749731679399,2.48773009,158.93,158.92,13.92554709]
[1749731679587,2.48773009,158.93,158.88,20.24384709]
[1749731680587,8.78000491,158.93,158.88,20.24384709]
[1749731680779,2.48773009,158.93,158.92,13.92554709]
[1749731682390,8.77980836,158.93,158.92,13.92554709]
[1749731683081,8.77980836,158.93,158.91,13.92554709]
[1749731683604,8.77980836,158.93,158.92,13.92554709]
[1749731684604,11.13642053,158.93,158.92,13.92554709]
[1749731685304,11.13642053,158.93,158.84,7.8255]
[1749731685619,2.3569099,158.92,158.91,13.92554709]
[1749731685918,6.2924742,158.92,158.91,13.92554709]
[1749731686094,8.64939204,158.92,158.91,13.92554709]
[1749731686300,2.35688666,158.92,158.91,13.92554709]
[1749731686602,8.77997057,158.93,158.91,13.92554709]
[1749731686793,8.77997057,158.93,158.92,13.92554709]
[1749731687813,11.13673915,158.93,158.92,13.92554709]
[1749731688304,11.13673915,158.93,158.88,13.92554709]
[1749731688606,8.77997057,158.93,158.92,13.92554709]
[1749731689993,8.77997057,158.93,158.84,35.0255]
[1749731690202,8.77997057,158.93,158.92,13.92554709]
[1749731690396,11.13279526,158.93,158.92,13.92554709]
[1749731690582,11.13275372,158.93,158.91,13.92554709]
[1749731690793,8.77997057,158.93,158.91,13.92554709]
[1749731692109,24.51016625,158.93,158.91,13.92554709]
[1749731692586,24.51016625,158.93,158.92,13.92554709]
[1749731692785,24.51016625,158.93,158.91,13.92554709]
[1749731693190,24.51016625,158.93,158.89,13.92554709]
[1749731693686,24.51016625,158.93,158.92,13.92554709]
[1749731693889,8.77997057,158.93,158.92,13.92554709]
[1749731694516,8.77997057,158.93,158.84,7.8255]
[1749731694690,8.77997057,158.93,158.92,13.92554709]
[1749731695393,8.77997057,158.93,158.84,7.8255]
[1749731695793,8.77997057,158.93,158.91,13.92554709]
[1749731696598,8.77997057,158.93,158.92,13.92554709]
[1749731696995,8.77997057,158.93,158.91,13.92554709]
[1749731697791,8.77997057,158.93,158.92,13.92554709]
[1749731697989,8.77997057,158.93,158.91,13.92554709]
[1749731698386,8.77997057,158.93,158.92,13.92554709]
[1749731700635,26.0,158.9,158.84,1.5935]
[1749731700796,26.0,158.9,158.8,1.6428]
[1749731700998,13.92554709,158.86,158.76,6.6244]
[1749731701197,13.92554709,158.81,158.72,20.39114709]
[1749731701396,13.92554709,158.82,158.77,13.92554709]
[1749731701612,26.0,158.81,158.78,13.92554709]
[1749731701820,13.92554709,158.8,158.72,6.4656]
[1749731702025,13.92554709,158.79,158.71,1.527]
[1749731702232,13.92554709,158.78,158.68,6.4732]
[1749731702524,6.29762579,158.79,158.77,13.92554709]
[1749731703020,6.29762579,158.79,158.78,13.92554709]
[1749731703228,26.0,158.8,158.78,13.92554709]
[1749731703426,26.0,158.8,158.79,23.25651496]
[1749731703722,32.29702822,158.81,158.79,23.25651496]
[1749731703897,26.0,158.81,158.8,23.25651496]
[1749731704095,32.29683269,158.81,158.8,23.25651496]
[1749731704414,26.0,158.81,158.79,23.25651496]
[1749731705128,32.29598674,158.84,158.8,23.25651496]
[1749731705421,26.0,158.82,158.81,23.25651496]
[1749731705920,26.0,158.83,158.81,23.25651496]
[1749731706130,26.0,158.82,158.78,23.25651496]
[1749731706326,49.25651496,158.82,158.77,23.25651496]
[1749731706895,6.29683269,158.81,158.78,23.25651496]
[1749731709115,6.29683269,158.81,158.73,27.14]
[1749731709307,6.29683269,158.81,158.77,23.25651496]
[1749731709708,45.29542938,158.81,158.76,23.25651496]
[1749731710632,23.25651496,158.8,158.75,23.25651496]
[1749731710842,6.29762579,158.79,158.75,23.25651496]
[1749731711130,22.04169027,158.79,158.75,23.25651496]
[1749731711828,6.29762579,158.79,158.76,23.25651496]
[1749731712127,6.29762579,158.79,158.77,23.25651496]
[1749731712914,6.29722921,158.8,158.71,1.5319]
[1749731713232,45.29681721,158.8,158.75,23.25651496]
[1749731713432,22.04030225,158.8,158.76,23.25651496]
[1749731713732,45.29681721,158.8,158.76,23.25651496]
[1749731714226,22.04030225,158.8,158.76,23.25651496]
[1749731716649,15.74307304,158.8,158.77,23.25651496]
[1749731717207,15.74307304,158.8,158.76,23.25651496]
[1749731717708,22.04030225,158.8,158.76,23.25651496]
[1749731718014,22.04030225,158.8,158.77,23.25651496]
[1749731718421,22.04030225,158.8,158.76,23.25651496]
[1749731719233,22.04030225,158.8,158.71,1.5319]
[1749731719539,22.04030225,158.8,158.75,23.25651496]
[1749731719709,15.74307304,158.8,158.78,23.25651496]
[1749731719914,15.74307304,158.8,158.77,23.25651496]
[1749731720115,15.74307304,158.8,158.76,23.25651496]
[1749731720430,38.999588,158.8,158.71,1.5319]
[1749731720608,23.25651496,158.79,158.71,1.5319]
[1749731721025,38.999588,158.8,158.75,23.25651496]
[1749731721928,45.29681721,158.8,158.75,23.25651496]
[1749731722141,26.0,158.78,158.77,23.25651496]
[1749731722316,22.04030225,158.8,158.77,23.25651496]
[1749731722515,22.04030225,158.8,158.76,23.25651496]
[1749731723311,22.04030225,158.8,158.71,1.5319]
[1749731723516,22.04030225,158.8,158.76,23.25651496]
[1749731723815,19.19432314,158.84,158.79,23.25651496]
[1749731723816,6.29564341,158.84,158.79,23.25651496]
[1749731724126,29.55215837,158.84,158.8,23.25651496]
[1749731724435,45.2912669,158.84,158.79,23.25651496]
[1749731724612,23.25651496,158.83,158.79,23.25651496]
[1749731724813,22.03475194,158.84,158.79,23.25651496]
[1749731725042,45.2912669,158.84,158.79,23.25651496]
[1749731725220,35.98885751,158.84,158.79,13.95410557]
[1749731726056,14.23842871,158.83,158.78,13.95410557]
[1749731726922,22.03475194,158.84,158.73,27.02]
[1749731726923,22.03475194,158.84,158.81,13.95410557]
[1749731727128,26.0,158.82,158.81,13.95410557]
[1749731727641,26.0,158.82,158.8,13.95410557]
[1749731727938,26.0,158.82,158.81,13.95410557]
[1749731728247,26.0,158.84,158.81,13.95410557]
[1749731728550,26.0,158.84,158.83,13.95410557]
[1749731728843,26.0,158.84,158.82,13.95410557]
[1749731729235,26.0,158.84,158.73,27.02]
[1749731729432,26.0,158.84,158.83,13.95410557]
[1749731730029,32.29564341,158.84,158.83,13.95410557]
[1749731730619,32.29564341,158.84,158.74,18.64964886]
[1749731730947,32.29564341,158.84,158.83,13.95410557]
[1749731731142,6.29564341,158.84,158.83,13.95410557]
[1749731731519,6.29485081,158.86,158.83,13.95410557]
[1749731731820,6.29485081,158.86,158.8,13.95410557]
[1749731731821,6.29485081,158.86,158.85,13.95410557]
[1749731732736,6.29366228,158.89,158.85,13.95410557]
[1749731732945,6.29366228,158.89,158.88,13.95410557]
[1749731733447,6.29341356,158.9,158.88,13.95410557]
[1749731733650,18.2188147,158.93,158.89,13.95410557]
[1749731733825,24.51089297,158.93,158.92,13.95410557]
[1749731734022,8.77980836,158.93,158.92,13.95410557]
[1749731734222,34.77980836,158.93,158.92,13.95410557]
[1749731734748,34.77980836,158.93,158.88,13.95410557]
[1749731735052,34.77980836,158.93,158.86,1.5973]
[1749731735352,2.35831141,158.92,158.9,13.95410557]
[1749731735645,50.51000404,158.93,158.9,13.95410557]
[1749731735819,2.35832207,158.92,158.9,13.95410557]
[1749731736022,2.35833408,158.91,158.89,13.95410557]
[1749731736222,2.35836558,158.9,158.88,13.95410557]
[1749731736467,2.35836694,158.89,158.88,13.95410557]
[1749731736629,64.46410961,158.93,158.88,13.95410557]
[1749731736827,26.0,158.89,158.82,1.5029]
[1749731737142,26.0,158.89,158.76,0.14216157]
[1749731737143,13.95410557,158.87,158.78,1.5102]
[1749731737352,2.35888654,158.86,158.83,13.95410557]
[1749731737566,2.35885166,158.85,158.81,13.95410557]
[1749731737870,2.3591184,158.84,158.8,13.95410557]
[1749731738157,2.35933397,158.83,158.81,13.95410557]
[1749731738363,8.65577104,158.82,158.81,13.95410557]
[1749731738537,8.65574172,158.82,158.81,13.95410557]
[1749731738736,6.29643621,158.82,158.81,13.95410557]
[1749731739251,6.29643621,158.82,158.81,23.25071375]
[1749731739845,6.29643621,158.82,158.76,6.3612]
[1749731740050,6.29643621,158.82,158.81,23.25071375]
[1749731740248,22.03475194,158.84,158.81,23.25071375]
[1749731741862,22.03475194,158.84,158.76,6.3612]
[1749731742052,22.03475194,158.84,158.8,23.25071375]
[1749731742248,22.03475194,158.84,158.81,23.25071375]
[1749731743046,45.28546569,158.84,158.8,23.25071375]
[1749731743244,22.03475194,158.84,158.8,23.25071375]
[1749731743456,22.03475194,158.84,158.81,23.25071375]
[1749731744340,15.73910853,158.84,158.82,23.25071375]
[1749731744542,15.73910853,158.84,158.81,23.25071375]
[1749731746456,22.03475194,158.84,158.8,23.25071375]
[1749731746966,22.03475194,158.84,158.81,23.25071375]
[1749731747164,6.29564341,158.84,158.81,23.25071375]
[1749731747838,6.29564341,158.84,158.82,23.25071375]
[1749731748590,22.03340332,158.85,158.82,23.25071375]
[1749731751277,44.64964886,158.82,158.76,23.25071375]
[1749731751459,0.28432314,158.81,158.77,23.25071375]
[1749731752665,26.0,158.78,158.77,23.25071375]
[1749731753364,22.04030225,158.8,158.77,23.25071375]
[1749731753568,6.29722921,158.8,158.79,23.25071375]
[1749731754752,6.29683269,158.81,158.79,23.25071375]
[1749731754945,6.29683269,158.81,158.8,23.25071375]
[1749731756347,6.29683269,158.81,158.79,23.25071375]
[1749731757074,6.29683269,158.81,158.8,23.25071375]
[1749731757251,6.29683269,158.81,158.72,28.6235]
[1749731757452,6.29683269,158.81,158.8,23.25071375]
[1749731757864,6.29683269,158.81,158.79,23.25071375]
[1749731758075,22.03891442,158.81,158.72,1.6035]
[1749731758378,49.25071375,158.78,158.67,7.776]
[1749731758590,23.25071375,158.76,158.72,23.25071375]
[1749731758780,6.29921259,158.75,158.67,7.776]
[1749731758992,6.29921259,158.75,158.72,23.25071375]
[1749731759284,6.29921259,158.75,158.73,23.25071375]
[1749731760280,6.29921259,158.75,158.74,23.25071375]
[1749731760480,6.29762579,158.79,158.74,23.25071375]
[1749731760655,6.29762579,158.79,158.78,23.25071375]
[1749731760855,22.04117081,158.8,158.78,23.25071375]
[1749731761290,22.04117081,158.8,158.78,13.95667313]
[1749731761454,22.04117081,158.8,158.79,13.95667313]
[1749731761887,6.29722921,158.8,158.75,1.5571]
[1749731762267,6.29722921,158.8,158.78,13.95667313]
[1749731762468,6.29722921,158.8,158.79,13.95667313]
[1749731762974,15.74231559,158.81,158.79,13.95667313]
[1749731763474,6.29643621,158.82,158.8,13.95667313]
[1749731763669,6.29643621,158.82,158.81,13.95667313]
[1749731764798,15.74001356,158.84,158.81,13.95667313]
[1749731764962,18.09791694,158.84,158.81,13.95667313]
[1749731765161,18.09791616,158.84,158.81,13.95667313]
[1749731765387,18.09791616,158.84,158.82,13.95667313]
[1749731765759,18.09792607,158.84,158.82,13.95667313]
[1749731766385,15.74001356,158.84,158.82,13.95667313]
[1749731767178,6.29524708,158.85,158.83,13.95667313]
[1749731767494,8.65302807,158.85,158.83,13.95667313]
[1749731767669,8.65302807,158.85,158.75,7.6838]
[1749731767670,6.29524708,158.85,158.84,13.95667313]
[1749731769599,6.29366228,158.89,158.84,13.95667313]
[1749731769892,6.29366228,158.89,158.8,13.95667313]
[1749731769893,8.65097127,158.89,158.88,13.95667313]
[1749731770099,8.6509628,158.89,158.87,13.95667313]
[1749731770398,8.65096168,158.89,158.87,13.95667313]
[1749731770594,6.29366228,158.89,158.87,13.95667313]
[1749731770775,8.65095138,158.89,158.88,13.95667313]
[1749731771166,8.65095099,158.89,158.88,13.95667313]
[1749731771372,6.29366228,158.89,158.88,13.95667313]
[1749731771678,22.02781798,158.89,158.87,13.95667313]
[1749731771871,2.3573633,158.88,158.84,13.95667313]
[1749731772072,2.3573633,158.87,158.84,13.95667313]
[1749731772382,21.29141107,158.88,158.85,13.95667313]
[1749731772581,18.933972,158.88,158.85,13.95667313]
[1749731773102,26.0,158.86,158.84,13.95667313]
[1749731773388,6.29524708,158.85,158.83,13.95667313]
[1749731774394,6.29524708,158.85,158.84,13.95667313]
[1749731775195,6.29485081,158.86,158.84,13.95667313]
[1749731775407,6.29485081,158.86,158.85,13.95667313]
[1749731776581,6.29485081,158.86,158.8,13.95667313]
[1749731776787,6.29485081,158.86,158.85,13.95667313]
[1749731777288,6.29485081,158.86,158.84,13.95667313]
[1749731777982,2.35753809,158.87,158.84,13.95667313]
[1749731778186,22.02942895,158.88,158.84,13.95667313]
[1749731778382,2.35751983,158.87,158.84,13.95667313]
[1749731778630,2.35744211,158.87,158.84,13.95667313]
[1749731778994,2.35744418,158.87,158.84,13.95667313]
[1749731779195,6.2940584,158.88,158.86,13.95667313]
[1749731779388,6.2940584,158.88,158.82,1.62]
[1749731779600,6.2940584,158.88,158.87,13.95667313]
[1749731780203,8.65032569,158.9,158.87,13.95667313]
[1749731780400,6.2932662,158.9,158.87,13.95667313]
[1749731780793,22.02643171,158.9,158.87,13.95667313]
[1749731781406,22.02643171,158.9,158.86,13.95667313]
[1749731781822,22.02643171,158.9,158.87,13.95667313]
[1749731782524,22.02643171,158.9,158.88,13.95667313]
[1749731782728,6.2932662,158.9,158.88,13.95667313]
[1749731782910,8.65037781,158.9,158.88,13.95667313]
[1749731783323,6.2932662,158.9,158.88,13.95667313]
[1749731783633,6.29299306,158.91,158.89,13.95667313]
[1749731783794,6.29299306,158.91,158.9,13.95667313]
[1749731783998,6.29261754,158.92,158.9,13.95667313]
[1749731784193,6.29261754,158.92,158.83,6.1842]
[1749731784194,6.29261754,158.92,158.91,13.95667313]
[1749731784419,8.77991434,158.93,158.91,13.95667313]
[1749731785430,2.48773009,158.93,158.92,13.95667313]
[1749731786150,2.48773009,158.93,158.88,13.95667313]
[1749731786151,8.77980836,158.93,158.88,13.95667313]
[1749731786320,8.77980836,158.93,158.92,13.95667313]
[1749731786899,2.48773009,158.93,158.92,13.95667313]
[1749731789127,2.48773009,158.93,158.89,1.623]
[1749731789331,8.77987847,158.93,158.92,13.95667313]
[1749731791029,26.0,158.9,158.83,6.1842]
[1749731791242,26.0,158.9,158.75,16.71993014]
[1749731791408,26.0,158.88,158.86,13.95667313]
[1749731791614,26.0,158.88,158.8,13.95667313]
[1749731791951,26.0,158.88,158.86,13.95667313]
[1749731792121,39.95667313,158.89,158.8,13.95667313]
[1749731792450,6.2940584,158.88,158.84,13.95667313]
[1749731792625,35.98587755,158.88,158.83,13.95667313]
[1749731792822,13.95667313,158.87,158.82,13.95667313]
[1749731793146,53.7838196,158.88,158.81,13.95667313]
[1749731793314,44.933972,158.87,158.83,13.95667313]
[1749731793509,26.0,158.85,158.75,8.1167]
[1749731793720,26.0,158.85,158.83,13.95667313]
[1749731793930,26.0,158.85,158.82,13.95667313]
[1749731794217,26.0,158.85,158.83,13.95667313]
[1749731794624,6.29564341,158.84,158.83,13.95667313]
[1749731795224,6.29564341,158.84,158.75,8.1167]
[1749731795537,6.29564341,158.84,158.83,13.95667313]
[1749731796215,6.29564341,158.84,158.75,8.1167]
[1749731796440,18.933972,158.83,158.7,6.74084075]
[1749731796742,6.29643621,158.82,158.79,13.95667313]
[1749731796959,6.29643621,158.82,158.81,13.95667313]
[1749731799545,6.29485081,158.86,158.81,13.95667313]
[1749731799731,6.29485081,158.86,158.85,13.95667313]
[1749731800840,6.2940584,158.88,158.85,13.95667313]
[1749731801027,6.2940584,158.88,158.86,13.95667313]
[1749731802148,6.2940584,158.88,158.87,13.95667313]
[1749731802450,8.65387125,158.88,158.87,13.95667313]
[1749731802850,2.35982529,158.88,158.87,13.95667313]
[1749731803040,2.35981227,158.88,158.87,13.95667313]
[1749731803357,22.02781798,158.89,158.87,13.95667313]
[1749731803651,2.35981246,158.88,158.87,13.95667313]
[1749731803857,2.35980847,158.88,158.86,13.95667313]
[1749731804055,22.02781798,158.89,158.87,13.95667313]
[1749731804240,2.3598211,158.88,158.87,13.95667313]
[1749731804748,22.02781798,158.89,158.87,13.95667313]
[1749731804749,6.29366228,158.89,158.87,13.95667313]
[1749731804948,2.35947684,158.91,158.88,13.95667313]
[1749731805154,2.35947689,158.9,158.88,13.95667313]
[1749731805452,2.35946171,158.91,158.89,13.95667313]
[1749731805635,22.02447709,158.92,158.89,13.95667313]
[1749731805827,2.35932778,158.91,158.89,13.95667313]
[1749731806026,22.02447709,158.92,158.8,13.95667313]
[1749731806227,22.02447709,158.92,158.88,13.95667313]
[1749731806460,2.35936483,158.91,158.88,13.95667313]
[1749731806636,22.02447709,158.92,158.88,13.95667313]
[1749731806841,6.2932662,158.9,158.88,13.95667313]
[1749731807033,6.2932662,158.9,158.89,13.95667313]
[1749731807863,6.29257397,158.92,158.89,13.95667313]
[1749731808040,6.29257397,158.92,158.82,32.2831]
[1749731808249,6.29257397,158.92,158.9,13.95667313]
[1749731808753,22.02375947,158.92,158.88,13.95667313]
[1749731809261,22.02375947,158.92,158.89,13.95667313]
[1749731809562,22.02375947,158.92,158.82,32.2831]
[1749731809563,6.29257397,158.92,158.91,13.95667313]
[1749731809762,8.65173223,158.92,158.91,13.95667313]
[1749731810139,6.29257397,158.92,158.91,13.95667313]
[1749731811142,6.29257397,158.92,158.82,32.2831]
[1749731811341,6.29257397,158.92,158.91,13.95667313]
[1749731812938,6.29257397,158.92,158.88,15.47137313]
[1749731813156,6.29257397,158.92,158.91,13.95667313]
[1749731813662,2.48773009,158.93,158.91,13.95667313]
[1749731813849,2.48773009,158.93,158.92,13.95667313]
[1749731815868,8.77980836,158.93,158.92,13.95667313]
[1749731817262,2.48773009,158.93,158.88,15.47137313]
[1749731817446,2.48773009,158.93,158.92,13.95667313]
[1749731821351,15.72409167,159.0,158.92,6.0195]
[1749731821352,6.28954603,159.0,158.92,6.0195]
[1749731821744,6.28954603,159.0,158.97,13.95667313]
[1749731821941,6.28954603,159.0,158.98,13.95667313]
[1749731823042,22.01281647,159.0,158.97,13.95667313]
[1749731823539,18.64964886,158.97,158.88,7.98]
[1749731823736,48.01281647,159.0,158.96,13.95667313]
[1749731823956,22.01281647,159.0,158.89,26.0]
[1749731824176,22.01281647,159.0,158.9,26.0]
[1749731824359,22.01281647,159.0,158.96,13.95667313]
[1749731824778,22.01281647,159.0,158.88,41.47137313]
[1749731825067,22.01281647,159.0,158.97,13.95667313]
[1749731825240,22.01281647,159.0,158.88,41.47137313]
[1749731825573,22.01281647,159.0,158.98,13.95667313]
[1749731825770,22.01281647,159.0,158.88,41.47137313]
[1749731825981,13.95667313,158.98,158.94,13.95667313]
[1749731826143,13.95667313,158.97,158.88,1.5147]
[1749731826347,13.95667313,158.96,158.92,13.95667313]
[1749731826561,13.95667313,158.96,158.88,15.47137313]
[1749731826846,13.95667313,158.95,158.88,1.5147]
[1749731827151,22.02088837,158.94,158.9,13.95667313]
[1749731827369,22.02088837,158.94,158.91,13.95667313]
[1749731827777,22.02088837,158.94,158.84,34.9707]
[1749731827978,22.02088837,158.94,158.9,13.95667313]
[1749731828173,22.02088837,158.94,158.91,13.95667313]
[1749731828783,6.29168239,158.94,158.93,13.95667313]
[1749731829074,33.6175,158.96,158.93,13.95667313]
[1749731829075,6.29089079,158.96,158.93,13.95667313]
[1749731829277,22.14687313,159.0,158.95,13.95667313]
[1749731829582,24.36184731,158.99,158.95,13.95667313]
[1749731829770,22.01396313,158.99,158.95,13.95667313]
[1749731830378,22.01396313,158.99,158.96,13.95667313]
[1749731830781,22.01396313,158.99,158.95,13.95667313]
[1749731831469,18.933972,158.98,158.94,13.95667313]
[1749731831672,32.89064513,158.98,158.88,13.95667313]
[1749731831850,18.933972,158.98,158.94,13.95667313]
[1749731832054,18.933972,158.98,158.95,13.95667313]
[1749731832272,18.933972,158.98,158.88,13.95667313]
[1749731832472,39.95667313,158.95,158.84,35.3907]
[1749731832676,39.95667313,158.95,158.9,13.95667313]
[1749731832874,26.0,158.95,158.91,13.95667313]
[1749731833251,6.29168239,158.94,158.91,13.95667313]
[1749731833555,22.02088837,158.94,158.91,13.95667313]
[1749731833755,6.29168239,158.94,158.92,13.95667313]
[1749731833985,6.29168239,158.94,158.88,13.95667313]
[1749731834181,6.29168239,158.94,158.84,35.3907]
[1749731834482,6.29168239,158.94,158.91,13.95667313]
[1749731835385,18.64964886,158.93,158.84,8.0107]
[1749731835568,22.02088837,158.94,158.9,13.95667313]
[1749731835885,35.9775615,158.94,158.84,8.0107]
[1749731836378,35.9775615,158.94,158.89,13.95667313]
[1749731836565,35.9775615,158.94,158.9,13.95667313]
[1749731836770,22.02088837,158.94,158.9,13.95667313]
[1749731836985,35.9775615,158.94,158.89,13.95667313]
[1749731837384,22.0236597,158.92,158.89,13.95667313]
[1749731838470,22.0236597,158.92,158.84,8.0107]
[1749731838791,22.0236597,158.92,158.89,13.95667313]
[1749731839177,6.2924742,158.92,158.91,13.95667313]
[1749731839372,8.64270131,158.94,158.84,8.0107]
[1749731839579,6.29168239,158.94,158.92,13.95667313]
[1749731839794,6.29168239,158.94,158.88,13.95667313]
[1749731839989,6.29168239,158.94,158.93,13.95667313]
[1749731841289,22.01820419,158.96,158.93,13.95667313]
[1749731842561,22.01820419,158.96,158.88,13.95667313]
[1749731842790,22.01820419,158.96,158.93,13.95667313]
[1749731842995,22.01820419,158.96,158.92,13.95667313]
[1749731843162,22.01820419,158.96,158.84,8.0107]
[1749731843367,22.01820419,158.96,158.92,13.95667313]
[1749731843583,22.01820419,158.96,158.93,13.95667313]
[1749731843767,22.01820419,158.96,158.88,13.95667313]
[1749731843967,22.01820419,158.96,158.94,13.95667313]
[1749731844393,22.01820419,158.96,158.93,13.95667313]
[1749731844887,22.01820419,158.96,158.88,13.95667313]
[1749731845274,22.01820419,158.96,158.93,13.95667313]
[1749731845473,22.01820419,158.96,158.94,13.95667313]
[1749731845668,22.01820419,158.96,158.93,13.95667313]
[1749731846592,22.01820419,158.96,158.84,8.0107]
[1749731846904,13.95667313,158.91,158.87,13.95667313]
[1749731847270,6.29287017,158.91,158.88,13.95667313]
[1749731847671,6.29287017,158.91,158.89,13.95667313]
[1749731848379,22.02262257,158.93,158.89,13.95667313]
[1749731848581,13.95667313,158.92,158.87,13.95667313]
[1749731848887,13.95667313,158.91,158.87,13.95667313]
[1749731849471,18.933972,158.92,158.87,13.95667313]
[1749731849799,13.95667313,158.91,158.87,13.95667313]
[1749731849998,13.95667313,158.91,158.86,13.95667313]
[1749731850374,13.95667313,158.91,158.84,1.5454]
[1749731850702,22.02643171,158.9,158.86,13.95667313]
[1749731851500,22.02643171,158.9,158.88,13.95667313]
[1749731852098,22.02643171,158.9,158.87,13.95667313]
[1749731852410,13.95667313,158.88,158.8,8.1285]
[1749731852610,13.95667313,158.86,158.81,13.95667313]
[1749731852811,13.95667313,158.86,158.8,1.6582]
[1749731853104,13.95667313,158.85,158.8,13.95667313]
[1749731853305,13.95667313,158.86,158.81,13.95667313]
[1749731853496,22.03059104,158.87,158.83,13.95667313]
[1749731853694,22.03059104,158.87,158.84,13.95667313]
[1749731854792,22.03059104,158.87,158.77,26.0]